Cogmind - Beta 13 @@@ ROGUE MODE // 2024.05.15 @ 23:09:20 Player: GFYguy Result: Self-destructed Performance ------------- Evolutions (2) 1000 Regions Visited (3) 600 Robots Destroyed (55) 275 Value Destroyed (1054) 1054 Prototype IDs (3) 60 Alien Tech Used (0) 0 Bonus (0) 0 TOTAL SCORE: 2989 Bonus ------- None Cogmind --------- Core Integrity 417/550 Matter 300/300 Energy 100/100 System Corruption 1% Temperature Cool (0) Movement Rolling (130) Ox2 Location -8/Materials Parts ------- > --- POWER (1) -------- (None) > --- PROPULSION (4) --- Compact Wheel > --- UTILITY (4) ------ Improved Heat Sink High-capacity Storage Unit Structural Scanner > --- WEAPON (2) ------- Heavy Laser > --- INVENTORY (20) --- Light Nuclear Core Wheel Medium Storage Unit High-capacity Battery (250) Terrain Scan Processor Matter Filter Matter Filter Matter Filter Heavy Laser Heavy Laser Light Assault Rifle Light Assault Rifle Light Assault Rifle Light Assault Rifle Light Assault Rifle Light Assault Rifle Minigun Advanced EMP Blaster Advanced EMP Blaster Peak State ------------ > --- POWER ------------ Light Nuclear Core > --- PROPULSION ------- Compact Wheel Compact Wheel Compact Wheel Compact Wheel > --- UTILITY ---------- Improved Heat Sink High-capacity Storage Unit Structural Scanner Hardened Medium Armor Plating > --- WEAPON ----------- Heavy Laser Advanced EMP Blaster > --- INVENTORY -------- Light Nuclear Core Wheel Compact Wheel Medium Storage Unit High-capacity Battery Terrain Scan Processor Matter Filter Matter Filter Matter Filter Heavy Laser Heavy Laser Light Assault Rifle Light Assault Rifle Light Assault Rifle Light Assault Rifle Light Assault Rifle Light Assault Rifle Minigun Advanced EMP Blaster Advanced EMP Blaster [Rating: 27] Favorites ----------- Power Ion Engine Engine Ion Engine Power Core Light Nuclear Core Propulsion Wheel Wheel Wheel Utility Structural Scanner Device Structural Scanner Storage Small Storage Unit Protection Hardened Medium Armor Plating Weapon Light Assault Rifle Energy Gun Medium Laser Energy Cannon Light EM Pulse Cannon Ballistic Gun Light Assault Rifle Launcher Advanced EMP Blaster Build | -11 -10 -9 -8 ------- Run | Yrd Mat Mat Mat Slots Evolved 4 | . . 2 2 Power . | . . . . Propulsion 2 | . . 2 . Utility 2 | . . . 2 Weapon . | . . . . Parts Attached 67 | 9 10 25 23 Power 7 | 1 2 1 3 Engine 6 | 1 2 1 2 Core 1 | . . . 1 Reactor . | . . . . Propulsion 35 | 5 6 15 9 Treads . | . . . . Leg . | . . . . Wheel 35 | 5 6 15 9 Hover . | . . . . Flight . | . . . . Utility 13 | 1 2 5 5 Device 6 | . 2 1 3 Storage 5 | 1 . 4 . Processor . | . . . . Hackware . | . . . . Protection 2 | . . . 2 Artifact . | . . . . Weapon 12 | 2 . 4 6 Energy Gun 4 | 1 . 1 2 Energy Cannon 1 | . . 1 . Ballistic Gun 6 | 1 . 2 3 Ballistic Cannon . | . . . . Launcher 1 | . . . 1 Special Weapon . | . . . . Impact Weapon . | . . . . Slashing Weapon . | . . . . Piercing Weapon . | . . . . Special Melee Weapon . | . . . . Unidentified Prototypes 1 | . . . 1 Corrupted Parts 1 | . . . 1 System Corruption 1 | . . . 1 Parts Lost 19 | . 2 8 9 Power 2 | . . 1 1 Propulsion 12 | . 2 4 6 Utility 2 | . . 1 1 Weapon 3 | . . 2 1 Highest Loss Streak 7 | . 1 4 7 To Critical Strikes . | . . . . Average Slot Usage (%) 97 | . 99 97 97 Engine 9 | . 14 10 5 Core 1 | . . . 3 Wheel 36 | . 27 42 35 Device 15 | . 14 10 21 Storage 11 | . 14 11 9 Protection 1 | . . . 4 Energy Gun 9 | . 14 8 8 Energy Cannon 1 | . . 2 . Ballistic Gun 9 | . 14 10 6 Launcher 1 | . . . 2 Naked Turns . | . . . . Heaviest Build 65 | 13 14 54 65 Greatest Support 64 | 26 20 58 64 Greatest Overweight (x) 4 | . 1 1 4 Average Overweight (x) . | . . . . Largest Inventory Capacity 20 | 8 8 20 20 Average Capacity 13 | 7 8 10 20 Most Carried 20 | 7 8 11 20 Average Carried 10 | 3 7 9 16 Final Capacity 20 | 8 8 20 20 Final Carried 19 | 7 8 11 19 Class Distribution -------------------- 79% | Scavenger-Mutant 20% | Mutant Dominant Class ---------------- Mutant | -10/Materials Scavenger-Mutant | -9/Materials Scavenger-Mutant | -8/Materials Resources | -11 -10 -9 -8 ----------- Run | Yrd Mat Mat Mat Matter Collected 1082 | 265 164 390 263 Remotely . | . . . . Salvage Created 1998 | 218 389 734 657 Parts 144 | 22 36 58 28 Haulers Intercepted 5 | . 1 3 1 Recyclers Shooed 5 | . 2 1 2 Parts Field Recycled . | . . . . Retrieved Matter . | . . . . Parts Self-Destructed . | . . . . Prevented . | . . . . Kills | -11 -10 -9 -8 ------- Run | Yrd Mat Mat Mat Combat Hostiles Destroyed 22 | . 8 7 7 Guns 17 | . 8 5 4 Cannons 1 | . . 1 . AOE 2 | . . . 2 Classes Destroyed 10 | 3 5 1 1 Worker 5 | 2 . 3 . Builder 6 | . 4 2 . Tunneler 5 | 5 . . . Hauler 5 | . 1 3 1 Recycler 6 | 1 . 2 3 Operator 1 | . . . 1 Watcher 5 | . 1 3 1 Swarmer 3 | . 3 . . Grunt 16 | . 5 6 5 Sentry 3 | . . 1 2 Best Kill Streak 5 | 4 4 5 3 Combat Bots Only 3 | . 3 2 3 Max Kills in Single Turn 1 | 1 1 1 1 Gunslinging . | . . . . Exploded 1 | . . . 1 Melee . | . . . . Uniques/NPCs Destroyed . | . . . . Combat | -11 -10 -9 -8 -------- Run | Yrd Mat Mat Mat Hostile Shots Fired 207 | . 62 84 61 Missed 58 | . 14 26 18 Damage Taken 2212 | . 503 776 933 Core 422 | . 136 153 133 Absorbed by Shields . | . . . . Regen/Repaired (Parts) 51 | . . 51 . Core Remaining (%) 68 | 100 45 61 . Volleys Fired 183 | 20 49 70 44 Largest 2 | 2 2 2 2 Hottest 105 | 70 70 79 105 Shots Fired 348 | 40 98 137 73 Gun 319 | 40 98 114 67 Cannon 23 | . . 23 . Launcher 6 | . . . 6 Special . | . . . . Kinetic 164 | 20 49 67 28 Thermal 155 | 20 49 47 39 Explosive . | . . . . Electromagnetic 29 | . . 23 6 Robot Hit Streak 19 | 4 10 12 19 Robot Miss Streak 5 | 4 5 4 3 Penetration Max . | . . . . Secondary Targets 2 | . 1 1 . Max Gunslinging Chain 1 | . 1 1 . Shots Hit Robots 226 | 22 62 90 52 Core Hits 91 | 10 24 34 23 Critical Kills . | . . . . Critical Parts Destroyed . | . . . . Critical Strikes 7 | . 3 2 2 Burn 7 | . 3 2 2 Melee Attacks . | . . . . Impact . | . . . . Slashing . | . . . . Piercing . | . . . . Sneak Attacks . | . . . . Combat Hostiles . | . . . . Follow-up Attacks . | . . . . Damage Inflicted 3431 | 256 696 1448 1031 Guns 2588 | 256 696 983 653 Cannons 406 | . . 406 . Explosions 437 | . . 59 378 Melee . | . . . . Ramming . | . . . . Kinetic 1140 | 94 261 563 222 Thermal 1507 | 162 435 479 431 Explosive . | . . . . Electromagnetic 784 | . . 406 378 Impact . | . . . . Slashing . | . . . . Piercing . | . . . . Highest Corruption 1 | . . . 1 Average Corruption 1 | . . . 1 Corruption Purged . | . . . . Corruption Blocked . | . . . . Effects 1 | . . . 1 Message Errors 1 | . . . 1 Overload Shots . | . . . . Overflow Damage 47 | . . 46 1 Projectiles 18 | . . 18 . Explosions 29 | . . 28 1 Melee . | . . . . Knockbacks . | . . . . Impact . | . . . . Kinetic . | . . . . Secondary . | . . . . Self-Inflicted Damage 55 | . . 55 . Shots 1 | . . 1 . Rammed . | . . . . Targets Rammed . | . . . . Kicked . | . . . . Crushed . | . . . . Highest Temperature 231 | 70 226 231 79 Average Temperature 53 | 29 69 68 27 Received Heat Transfer 870 | . 198 393 279 Effects 1 | . . 1 . Interference 1 | . . 1 . Siege Activations . | . . . . Robots Corrupted 2 | . . 1 1 Combat Hostiles 2 | . . 1 1 Parts Fried 5 | . . 2 3 Impact Corruptions . | . . . . Robots Melted . | . . . . Combat Hostiles . | . . . . Parts Melted 7 | . 3 1 3 Heat Transferred 4268 | 481 1517 1271 999 Parts Sabotaged . | . . . . Parts Stolen . | . . . . Parts Stripped . | . . . . Power Chain Reactions 1 | . . 1 . Alert | -11 -10 -9 -8 ------- Run | Yrd Mat Mat Mat Peak Influence 334 | 40 334 259 254 Initial 74 | . 26 56 74 Average 156 | 17 197 157 161 Maximum Alert Level 1 | . 1 1 1 Low Security (%) 65 | 100 61 63 61 Level 1 34 | . 38 36 38 Level 2 . | . . . . Level 3 . | . . . . Level 4 . | . . . . Level 5 . | . . . . High Security . | . . . . Max Security . | . . . . Squads Dispatched 5 | . 2 2 1 Investigation 2 | . 1 . 1 Extermination . | . . . . Reinforcement 3 | . 1 2 . Assault . | . . . . Garrison . | . . . . Intercept . | . . . . Searches Triggered . | . . . . Construction Impeded 1 | . . 1 . Haulers Reinforced . | . . . . Active Scanning Responses . | . . . . Cargo Convoy Interrupts . | . . . . Stealth | -11 -10 -9 -8 --------- Run | Yrd Mat Mat Mat Distress Signals 5 | . 2 2 1 Communications Jammed . | . . . . Distress Signals . | . . . . Times Spotted 55 | . 15 21 19 Peak Tracking Total 6 | . 4 6 5 Tactical Retreats 6 | . 2 2 2 Traps | -11 -10 -9 -8 ------- Run | Yrd Mat Mat Mat Traps Triggered 2 | . . . 2 Indirectly 1 | . . . 1 Trap Hack Attempts . | . . . . Triggered . | . . . . Disarmed . | . . . . Reprogrammed . | . . . . Reused . | . . . . Traps Extracted . | . . . . Installed . | . . . . Triggered . | . . . . Machines | -11 -10 -9 -8 ---------- Run | Yrd Mat Mat Mat Machines Disabled 2 | . . 1 1 Max in Single Turn 1 | . . 1 1 Machines Repaired . | . . . . Machines Dismantled . | . . . . Machines Sabotaged . | . . . . Overloaded Fab Kills . | . . . . Hacking | -11 -10 -9 -8 --------- Run | Yrd Mat Mat Mat Machines Accessed 8 | . 2 4 2 Terminals 5 | . 2 3 . Fabricators . | . . . . Repair Stations 1 | . . 1 . Recycling Units 1 | . . . 1 Scanalyzers 1 | . . . 1 Garrison Access . | . . . . Total Hacks 22 | . 7 10 5 Successful 18 | . 4 9 5 Failed 4 | . 3 1 . Catastrophic . | . . . . Database Lockouts . | . . . . Manual . | . . . . Terminals 15 | . 7 8 . Fabricators . | . . . . Repair Stations 2 | . . 2 . Recycling Units 2 | . . . 2 Scanalyzers 3 | . . . 3 Garrison Access . | . . . . Terminal Hacks 11 | . 4 7 . Record 1 | . . 1 . Prototype ID Bank 1 | . 1 . . Alert Level 2 | . 1 1 . Locate Traps 2 | . 1 1 . Dispatch Records 1 | . . 1 . Transport Status 1 | . 1 . . Reinforcement Status 2 | . . 2 . Hauler Manifests 1 | . . 1 . Fabricator Hacks . | . . . . Repair Station Hacks 2 | . . 2 . Scan Component 1 | . . 1 . Repair 1 | . . 1 . Recycling Unit Hacks 2 | . . . 2 Report Inventory 1 | . . . 1 Retrieve Components 1 | . . . 1 Scanalyzer 3 | . . . 3 Insert Component 2 | . . . 2 Analyze 1 | . . . 1 Garrison Access Hacks . | . . . . Unauthorized Hacks . | . . . . Terminals . | . . . . Fabricators . | . . . . Repair Stations . | . . . . Recycling Units . | . . . . Scanalyzers . | . . . . Garrison Access . | . . . . Data Cores Recovered . | . . . . Used . | . . . . Hacking Detections 6 | . 2 3 1 Full Trace Events 1 | . . . 1 Feedback Events . | . . . . Feedback Blocked . | . . . . Robot Schematics Acquired . | . . . . Robots Built . | . . . . Authchips . | . . . . Time . | . . . . Total Robot Build Rating . | . . . . Part Schematics Acquired 1 | . . . 1 Parts Built . | . . . . Authchips . | . . . . Time . | . . . . Total Part Build Rating . | . . . . Parts Repaired 1 | . . 1 . Time 26 | . . 26 . Parts Recycled . | . . . . Recycled Matter . | . . . . Retrieved Matter . | . . . . Retrieved Components 7 | . . . 7 Parts Scanalyzed 1 | . . . 1 Part Schematics Acquired 1 | . . . 1 Parts Damaged . | . . . . Bothacking | -11 -10 -9 -8 ------------ Run | Yrd Mat Mat Mat Used RIF Installer . | . . . . Robots Hacked . | . . . . Non-combat . | . . . . Combat . | . . . . Robot Hacks Applied . | . . . . Relay Couplers Released . | . . . . Fabnet Peak Effective % . | . . . . Robots Rewired . | . . . . Allies Hacked . | . . . . Hacks Repelled . | . . . . Allies | -11 -10 -9 -8 -------- Run | Yrd Mat Mat Mat Total Allies . | . . . . Largest Group . | . . . . Highest-Rated Group . | . . . . Highest-Rated Ally . | . . . . Total Orders . | . . . . Ally Attacks . | . . . . Total Damage . | . . . . Kills . | . . . . Allies Corrupted . | . . . . Allies Melted . | . . . . Intel | -11 -10 -9 -8 ------- Run | Yrd Mat Mat Mat Robot Analysis Total . | . . . . Derelict Logs Recovered . | . . . . Drone Launches . | . . . . Drone Recoveries . | . . . . Exploration | -11 -10 -9 -8 ------------- Run | Yrd Mat Mat Mat Turns Passed 2032 | 167 472 703 690 Spaces Moved 1356 | 109 324 443 480 Core 18 | 18 . . . Treads . | . . . . Legs . | . . . . Wheels 1338 | 91 324 443 480 Hover . | . . . . Flight . | . . . . Fastest Speed 50 | 50 80 80 95 Average Speed 90 | 79 80 85 103 Slowest Speed 160 | 90 95 115 160 Overloaded Moves . | . . . . Propulsion Burnouts . | . . . . Robots Hopped . | . . . . Cave-ins Triggered . | . . . . Exploration Rate (%) 29 | 4 47 36 29 Regions Visited 3 Branch Regions . Pre-discovered Areas . | . . . . Known Exits Taken . | . . . . Unknown Exits Taken 3 | 1 1 1 . Scrap Searched . | . . . . Spaces Dug . | . . . . Terrain Destroyed 6 | . . 6 . Melee . | . . . . Projectile . | . . . . AOE 6 | . . 6 . Terrain Rammed . | . . . . Walls Destroyed . | . . . . Machines Disabled . | . . . . Actions | -11 -10 -9 -8 --------- Run | Yrd Mat Mat Mat Total 1833 | 151 447 633 602 Wait 141 | . 49 72 20 Move 1353 | 108 323 442 480 Hop . | . . . . Pick Up 62 | 13 9 15 25 Fast Attach 6 | 1 1 1 3 Attach 23 | 5 3 6 9 Detach . | . . . . Swap 38 | 3 6 18 11 Drop 27 | 1 7 9 10 Fire 183 | 20 49 70 44 Melee . | . . . . Ram . | . . . . Kick . | . . . . Crush . | . . . . Escape Stasis . | . . . . Rewire . | . . . . Trap . | . . . . Miscellaneous . | . . . . Route ------- -11/Scrapyard -10/Materials -9/Materials -8/Materials History --------- Turn | Location | Event 30 | -11/Scrapyard | Discovered new exit (range 15) 168 | -11/Scrapyard | Entered Materials 313 | -10/Materials | Build established: Mutant 489 | -10/Materials | Core integrity fell below 50% 625 | -10/Materials | Discovered new exit (range 13) 640 | -10/Materials | Entered another Materials area 640 | -9/Materials | Evolved 2 slots: Propulsion x2 682 | -9/Materials | Repaired Lgt. Assault Rifle 946 | -9/Materials | Build established: Scavenger-Mutant 1034 | -9/Materials | Lost 3 parts (2n1u) 1191 | -9/Materials | Discovered new exit (range 16) 1343 | -9/Materials | Entered another Materials area 1343 | -8/Materials | Evolved 2 slots: Utility x2 1373 | -8/Materials | Lost 4 parts (1p1n2w) 2033 | -8/Materials | Self-destructed Last Messages --------------- Dropped Heat Sink. Acquired Corrupted Imp. Heat Sink. Integrated Corrupted Imp. Heat Sink (+1). Corrupted Imp. Heat Sink temporarily disabled. Acquired 10 matter. O-16 Technician: "IFF HANDSHAKE FAILED. SECURING TERMINAL." Destroyed Hover Unit. Hacking Suite fried. O-16 Technician destroyed. Hrd. Medium Armor Plating blasted off. Com. Wheel destroyed. NLDIDNG JRTMR7 LWBANYVEGGQ<%AH2#KCRC0E Com. Wheel destroyed. Acquired Hrd. Medium Armor Plating. Adv. EMP Blaster destroyed. Com. Wheel destroyed. Lgt. Nuclear Core destroyed. Hrd. Medium Armor Plating destroyed. U-05 Engineer lays Concrete. Map ----- +----------------------------------------------------+ | =#%% ##????????????????????## ### """ # | | #! ############??????????## ### # | | # ############??????????## ############ | | # # ##??????????## / ############ | | # # ##??????????## ##?????????? | | ## # ##??????????## ##?????????? | | # # ! ##??????????#############?????????? | | # + ##??????????#############?????????? | | # # "" "" ##????????????????????????????????? | | # # ""S"" ##????????????????????????????????? | | # # """" ##?#########??????????????????????? | | # #########+############??????????????????????? | | ## ######### ##### [ ##??????????????????????? | | ######## ##??????????????????????? | | ######## * ##??????????????????????? | | %*[% ! %%! ##??????????????????????? | | ###########+#####!! ##??????????????????????? | | " ######## ### ###??????????????????????? | | " ######## ### ## ??????????????????????? | | " ## # """"" ###%% ##???????????????????????? | | ^^ # """"" ### % ##???????????????????????? | | ^^ / """"" ### u ##???????????????????????? | | # """"" ### ## ??????????????????????? | | #+### # """"" ### ## ###??????????????? | | ####### """"" ## %[###+########????????????? | | ####### """"? ## @ ##????????????? | | ##???## ? ## % ##????????????? | | ##???## ##/$% ##????????????? | | ##???########### ###+### ##????????????? | | ##???T ## ### # ? ##????????????? | | ######???????????? ## ###??????? ##????????????? | | ######?????????????## ##???????????????????????? | | ???????????????????## ##???????????????????????? | | ???????????????????## ?????????????????????????? | | ???????????????????## ?????????????????????????? | | ???????????????????## ?????????????????????????? | | ???????????????????# ?????????????????????????? | | ???????????????????? ?????????????????????????? | | ??????????????????? H ?????????????????????????? | | ?????????????????????? ??????????????????????????? | | ?????????????????????????????????????????????????? | | ?????????????????????????????????????????????????? | | ?????????????????????????????????????????????????? | | ?????????????????????????????????????????????????? | | ?????????????????????????????????????????????????? | | ?????????????????????????????????????????????????? | | ?????????????????????????????????????????????????? | | ?????????????????????????????????????????????????? | | ?????????????????????????????????????????????????? | | ?????????????????????????????????????????????????? | +----------------------------------------------------+ Best States ------------- Heat Dissipation 41 Energy Generation 14 Energy Capacity 265 Matter Stores 300 Matter Capacity 300 Sight Range 16 Terrain Scan Range 16 Terrain Scan Density 10 Armor Coverage 225 Evasion (%) 50 Matter Filtering 30 Item Schematics ----------------- Wheel | -8/Materials | Scanalyzed Robot Schematics ------------------ None Fabricated ------------ Nothing Alien Tech Used ----------------- None Achievements -------------- None Challenges ------------ None Game ------ Seed TachyonVariableGenerator Manual? 0 Play Time 00:30:46 Cumulative 12.8 hours Start 2024.05.15 @ 22:34:57 End 2024.05.15 @ 23:09:20 Sessions 1 Manual Loads 0 Difficulty Rogue Special Mode None Game No. 15 Rogue 15 Adventurer 0 Explorer 0 Win Type - Total 0 Types 0/0/0/0/0/0/0/0/0 Lore% 4 Gallery% 18 Achievement% 16 Wizard Run 0 Options --------- Layout 1 ASCII 0 Keyboard 0 Movement Mouse Keybinds 0 Fullscreen 2 Font 24/Smallcaps Map View 50x35 Zoom Use 0% Tactical HUD 0 Map Filters NONE Filters NONE Steam 1 RUN: ae39593f-810b-4348-8083-b9fd26eb587d